fUSD/lending_fUSD_20240109
["ID","MTS","AMOUNT","RATE_DAILY","PERIOD"]
[310974164,1704838262023,-542.59,0.00041095,30]
[310974165,1704838262034,-500.0,0.00041095,30]
[310974166,1704838262046,-2105.66,0.00041095,30]
[310974167,1704838262056,-500.0,0.00041095,30]
[310974168,1704838262065,-500.0,0.00041095,30]
[310974169,1704838262075,-915.72,0.00041095,30]
[310974170,1704838262085,-14785.85,0.00041095,30]
[310974171,1704838262095,-1032.38,0.00041095,30]
[310974172,1704838262105,-1211.12,0.00041095,30]
[310974173,1704838262116,-500.0,0.00041095,30]
[310974174,1704838262126,-22037.22,0.00041095,30]
[310974175,1704838262135,-1158.78,0.00041095,30]
[310974176,1704838262145,-502.76327618,0.00041095,30]
[310974177,1704838262156,-2087.61,0.00041095,30]
[310974178,1704838262165,-678.36,0.00041095,30]
[310974179,1704838262175,-2690.56,0.00041095,30]
[310974180,1704838262185,-500.0,0.00041095,30]
[310974181,1704838262195,-1200.26,0.00041095,30]
[310974182,1704838262206,-358.59366586,0.00041095,30]
[310974183,1704838262217,-500.0,0.00041095,30]
[310974184,1704838262227,-1000.0,0.00041095,14]
[310974185,1704838262240,-500.0,0.00041095,30]
[310974186,1704838262250,-500.0,0.00041095,30]
[310974187,1704838262261,-1698.21,0.00041095,30]
[310974188,1704838262271,-500.0,0.00041095,30]
[310974189,1704838262281,-363.26389222,0.00041095,30]
[310974190,1704838262294,-868.29,0.00041095,30]
[310974191,1704838262307,-2233.54,0.00041095,30]
[310974192,1704838262317,-500.0,0.00041095,30]
[310974193,1704838262326,-500.0,0.00041095,30]
[310974194,1704838262336,-500.0,0.00041095,30]
[310974195,1704838262345,-500.0,0.00041095,30]
[310974196,1704838262354,-3590.14,0.00041095,30]
[310974197,1704838262365,-500.0,0.00041095,30]
[310974198,1704838262374,-577.37307426,0.00041095,7]
[310974199,1704838262384,-696.1,0.00041095,30]
[310974200,1704838262394,-1289.91,0.00041095,30]
[310974201,1704838262404,-640.9580008,0.00041095,30]
[310974202,1704838262413,-935.97,0.00041095,30]
[310974203,1704838262423,-500.0,0.00041095,30]
[310974204,1704838262432,-500.0,0.00041095,30]
[310974205,1704838262442,-3087.45,0.00041095,30]
[310974206,1704838262451,-932.38,0.00041095,30]
[310974207,1704838262461,-1957.42,0.00041095,30]
[310974208,1704838262471,-500.0,0.00041095,30]
[310974209,1704838262480,-1755.99,0.00041095,30]
[310974210,1704838262490,-500.0,0.00041095,30]
[310974211,1704838262499,-929.29046974,0.00041095,2]
[310974212,1704838262508,-1516.71,0.00041095,30]
[310974213,1704838262517,-2290.75,0.00041095,30]
[310974214,1704838262528,-500.0,0.00041095,30]
[310974215,1704838262537,-500.0,0.00041095,30]
[310974216,1704838262550,-4490.81,0.00041095,30]
[310974217,1704838262561,-500.0,0.00041095,30]
[310974218,1704838262571,-3587.54,0.00041095,30]
[310974219,1704838262581,-1124.84,0.00041095,30]
[310974220,1704838262592,-500.0,0.00041095,30]
[310974221,1704838262602,-2664.9,0.00041095,30]
[310974222,1704838262612,-500.0,0.00041095,30]
[310974223,1704838262622,-500.0,0.00041095,30]
[310974224,1704838262632,-1067.23,0.00041095,30]
[310974225,1704838262642,-1755.19,0.00041095,30]
[310974226,1704838262653,-627.07,0.00041095,30]
[310974227,1704838262663,-2101.87,0.00041095,30]
[310974228,1704838262674,-500.0,0.00041095,30]
[310974229,1704838262686,-866.03,0.00041095,30]
[310974230,1704838262696,-2150.53,0.00041095,30]
[310974231,1704838262707,-2616.94,0.00041095,30]
[310974232,1704838262717,-6286.35,0.00041095,30]
[310974233,1704838262727,-500.0,0.00041095,30]
[310974234,1704838263031,-500.0,0.00041095,30]
[310974235,1704838263041,-500.0,0.00041095,30]
[310974236,1704838263055,-500.0,0.00041095,30]
[310974237,1704838263065,-860.95,0.00041095,30]
[310974238,1704838263075,-1060.0,0.00041095,30]
[310974239,1704838263085,-3664.14,0.00041095,30]
[310974240,1704838263095,-548.83987233,0.00041095,30]
[310974241,1704838263105,-4736.49,0.00041095,30]
[310974242,1704838263115,-316.32685176,0.00041095,30]
[310974243,1704838263126,-40785.28,0.00041095,30]
[310974244,1704838263136,-785.46,0.00041095,30]
[310974245,1704838263147,-500.0,0.00041095,30]
[310974246,1704838263157,-1340.08,0.00041095,30]
[310974247,1704838263166,-500.0,0.00041095,30]
[310974248,1704838263176,-658.29,0.00041095,30]
[310974249,1704838263185,-673.12,0.00041095,30]
[310974250,1704838263195,-500.0,0.00041095,30]
[310974251,1704838263204,-8699.1,0.00041095,30]
[310974252,1704838263214,-1946.17,0.00041095,30]
[310974253,1704838263223,-2512.6,0.00041095,30]
[310974254,1704838263234,-616.9,0.00041095,30]
[310974255,1704838263244,-533.86,0.00041095,30]
[310974256,1704838263253,-500.0,0.00041095,30]
[310974257,1704838263262,-4221.43,0.00041095,30]
[310974258,1704838263271,-1228.81,0.00041095,30]
[310974259,1704838263281,-500.0,0.00041095,30]
[310974260,1704838263291,-1699.6,0.00041095,30]
[310974261,1704838263303,-8912.41,0.00041095,30]
[310974262,1704838263312,-1021.25,0.00041095,2]
[310974263,1704838263321,-500.0,0.00041095,30]
[310974264,1704838263330,-2915.16,0.00041095,30]
[310974265,1704838263341,-2785.67,0.00041095,30]
[310974266,1704838263351,-1025.86,0.00041095,30]
[310974267,1704838263361,-500.0,0.00041095,30]
[310974268,1704838263370,-500.0,0.00041095,30]
[310974269,1704838263379,-828.29,0.00041095,30]
[310974270,1704838263389,-981.9,0.00041095,30]
[310974271,1704838263398,-626.56,0.00041095,30]
[310974272,1704838263408,-758.12,0.00041095,30]
[310974273,1704838263417,-872.5,0.00041095,30]
[310974274,1704838263427,-2738.31,0.00041095,30]
[310974275,1704838263436,-2432.43,0.00041095,30]
[310974276,1704838263445,-1493.27,0.00041095,30]
[310974277,1704838263455,-500.0,0.00041095,30]
[310974278,1704838263465,-1780.73,0.00041095,30]
[310974279,1704838263474,-511.39541811,0.00041095,30]
[310974280,1704838263484,-500.0,0.00041095,30]
[310974281,1704838263494,-2880.3,0.00041095,30]
[310974282,1704838263503,-500.0,0.00041095,30]
[310974283,1704838263513,-2449.49,0.00041095,30]
[310974284,1704838263523,-500.0,0.00041095,30]
[310974285,1704838263533,-500.0,0.00041095,30]
[310974286,1704838263545,-500.0,0.00041095,30]
[310974287,1704838263554,-503.51526291,0.00041095,30]
[310974288,1704838263565,-500.0,0.00041095,30]
[310974289,1704838263574,-919.25,0.00041095,30]
[310974290,1704838263585,-500.0,0.00041095,30]
[310974291,1704838263594,-515.49,0.00041095,30]
[310974292,1704838263605,-532.67,0.00041095,30]
[310974293,1704838263617,-1342.25,0.00041095,30]
[310974294,1704838263627,-3619.65,0.00041095,30]
[310974295,1704838263637,-1684.71,0.00041095,30]
[310974296,1704838263651,-500.0,0.00041095,30]
[310974297,1704838263660,-16615.54,0.00041095,30]
[310974298,1704838263670,-5020.76,0.00041095,30]
[310974299,1704838263682,-2277.23,0.00041095,30]
[310974300,1704838263691,-500.0,0.00041095,7]
[310974301,1704838263701,-500.0,0.00041095,30]
[310974302,1704838263711,-1808.27,0.00041095,30]
[310974303,1704838263720,-1296.63,0.00041095,30]
[310974304,1704838263730,-1666.86,0.00041095,30]
[310974305,1704838263741,-500.0,0.00041095,30]
[310974306,1704838263751,-500.0,0.00041095,30]
[310974307,1704838263761,-1539.01,0.00041095,30]
[310974308,1704838263771,-1976.34,0.00041095,30]
[310974309,1704838263782,-948.22,0.00041095,30]
[310974310,1704838263791,-500.0,0.00041095,30]
[310974311,1704838263805,-1205.56,0.00041095,30]
[310974312,1704838263814,-2079.61,0.00041095,30]
[310974313,1704838263825,-523.3004909,0.00041095,30]
[310974314,1704838263836,-801.76,0.00041095,30]
[310974315,1704838263846,-227.07917873,0.00041095,30]
[310974316,1704838263856,-4081.69,0.00041095,30]
[310974317,1704838263866,-3259.69,0.00041095,30]
[310974318,1704838263876,-570.73,0.00041095,30]
[310974319,1704838263885,-500.0,0.00041095,30]
[310974320,1704838263894,-717.5,0.00041095,30]
[310974321,1704838263904,-1497.4,0.00041095,30]
[310974322,1704838263915,-500.0,0.00041095,30]
[310974323,1704838263924,-517.38834812,0.00041095,30]
[310974324,1704838263934,-500.0,0.00041095,30]
[310974325,1704838263943,-28570.96,0.00041095,30]
[310974326,1704838263953,-1778.5,0.00041095,30]
[310974327,1704838263962,-500.0,0.00041095,30]
[310974328,1704838263972,-2771.91,0.00041095,30]
[310974329,1704838263991,-500.0,0.00041095,30]
[310974330,1704838264000,-1907.56,0.00041095,30]
[310974331,1704838264009,-500.0,0.00041095,30]
[310974332,1704838264018,-1123.88,0.00041095,30]
[310974333,1704838264028,-500.0,0.00041095,30]
[310974334,1704838264038,-500.0,0.00041095,30]
[310974335,1704838264049,-4669.56,0.00041095,30]
[310974336,1704838264058,-5007.65,0.00041095,30]
[310974337,1704838264068,-3322.13,0.00041095,30]
[310974338,1704838264077,-500.0,0.00041095,30]
[310974339,1704838264087,-1486.69,0.00041095,30]
[310974340,1704838264096,-2423.33,0.00041095,30]
[310974341,1704838264105,-5248.46,0.00041095,30]
[310974342,1704838264114,-274.6149109,0.00041095,30]
[310974343,1704838264124,-500.0,0.00041095,30]
[310974344,1704838264134,-544.33,0.00041095,30]
[310974345,1704838264145,-2505.63,0.00041095,30]
[310974346,1704838264154,-500.0,0.00041095,30]
[310974347,1704838264163,-2340.4,0.00041095,30]
[310974348,1704838264173,-2974.2,0.00041095,30]
[310974349,1704838264183,-500.0,0.00041095,30]
[310974350,1704838264193,-791.9,0.00041095,30]
[310974351,1704838264202,-585.8,0.00041095,30]
[310974352,1704838264212,-500.0,0.00041095,30]
[310974353,1704838264222,-500.0,0.00041095,30]
[310974354,1704838264234,-4396.89,0.00041095,30]
[310974355,1704838264243,-2998.41,0.00041095,30]
[310974356,1704838264253,-2200.45,0.00041095,30]
[310974357,1704838264262,-500.0,0.00041095,30]
[310974358,1704838264272,-669.83,0.00041095,30]
[310974359,1704838264281,-606.27,0.00041095,30]
[310974360,1704838264291,-500.0,0.00041095,30]
[310974361,1704838264301,-665.74,0.00041095,30]
[310974362,1704838264311,-1058.26,0.00041095,30]
[310974363,1704838264320,-500.0,0.00041095,30]
[310974364,1704838264329,-500.0,0.00041095,30]
[310974365,1704838264338,-151.0,0.00041095,7]
[310974366,1704838264348,-151.0,0.00041095,7]
[310974367,1704838264357,-151.0,0.00041095,7]
[310974368,1704838264366,-151.0,0.00041095,7]
[310974369,1704838264375,-296.0,0.00041095,7]
[310974370,1704838264384,-226.526954,0.00041095,7]
[310974371,1704838264394,-226.526954,0.00041095,7]
[310974372,1704838264403,-151.0,0.00041095,7]
[310974373,1704838264413,-493.545168,0.00041095,7]
[310974374,1704838264422,-493.545168,0.00041095,7]
[310974375,1704838264432,-269.739418,0.00041095,7]
[310974376,1704838264441,-151.0,0.00041095,7]
[310974377,1704838264451,-256.472664,0.00041095,7]
[310974378,1704838264460,-209.49402,0.00041095,7]
[310974379,1704838264469,-151.0,0.00041095,7]
[310974380,1704838264478,-393.686593,0.00041095,7]
[310974381,1704838264487,-393.686593,0.00041095,7]
[310974382,1704838264496,-393.686593,0.00041095,7]
[310974383,1704838264505,-393.686593,0.00041095,7]
[310974384,1704838264514,-185.359581,0.00041095,7]
[310974385,1704838264523,-185.359581,0.00041095,7]
[310974386,1704838264533,-185.359581,0.00041095,7]
[310974387,1704838264542,-185.359581,0.00041095,7]
[310974388,1704838264552,-536.330019,0.00041095,7]
[310974389,1704838264561,-536.330019,0.00041095,7]
[310974390,1704838264570,-151.0,0.00041095,7]
[310974391,1704838264579,-151.0,0.00041095,7]
[310974392,1704838264589,-417.310268,0.00041095,7]
[310974393,1704838264598,-417.310268,0.00041095,7]
[310974394,1704838264608,-235.364519,0.00041095,7]
[310974395,1704838264617,-235.364519,0.00041095,7]
[310974396,1704838264627,-151.0,0.00041095,7]
[310974397,1704838264637,-7654.88,0.00041096,3]
[310974398,1704838264646,-153.84,0.00041096,2]
[310974399,1704838264655,-333.4011,0.00041098,8]
[310974400,1704838264665,-773.43385022,0.000411,2]
[310974401,1704838264675,-300.0,0.000411,2]
[310974402,1704838264684,-3000.0,0.000411,2]
[310974403,1704838264694,-500.0,0.000411,2]
[310974404,1704838264703,-1670.0,0.000411,2]
[310974405,1704838264716,-5036.0,0.000411,30]
[310974406,1704838264726,-8750.0,0.000411,5]
[310974407,1704838264736,-6117.36237381,0.000411,5]
[310974408,1704838264746,-152.0,0.00041104,5]
[310974409,1704838264757,-315.4748089,0.0004115,2]
[310974410,1704838264767,-1252.9303061,0.0004115,2]
[310974411,1704838264777,-8750.0,0.0004115,5]
[310974412,1704838264786,-315.4748089,0.0004115,2]
[310974413,1704838264798,-3579.9719125,0.0004115,2]
[310974414,1704838264807,-367.80540332,0.00041177,60]
[310974415,1704838264817,-367.80540332,0.00041177,60]
[310974416,1704838264826,-500.0,0.00041178,14]
[310974417,1704838264836,-500.0,0.00041178,30]
[310974418,1704838264845,-527.99224318,0.00041178,30]
[310974419,1704838264855,-500.0,0.00041178,30]
[310974420,1704838264864,-500.0,0.00041178,30]
[310974421,1704838264873,-500.0,0.00041178,30]
[310974422,1704838264883,-500.0,0.00041178,30]
[310974423,1704838264891,-807.24,0.00041178,30]
[310974424,1704838264901,-500.0,0.00041178,30]
[310974425,1704838264910,-500.0,0.00041178,30]
[310974426,1704838264920,-500.0,0.00041178,30]
[310974427,1704838264929,-500.0,0.00041178,30]
[310974428,1704838264939,-500.0,0.00041178,30]
[310974429,1704838264948,-500.0,0.00041178,30]
[310974430,1704838264957,-500.0,0.00041178,30]
[310974431,1704838264967,-500.0,0.00041178,30]
[310974432,1704838264976,-840.21,0.00041178,30]
[310974433,1704838264985,-500.0,0.00041178,7]
[310974434,1704838264995,-581.05,0.00041178,30]
[310974435,1704838265004,-981.24,0.00041178,30]
[310974436,1704838265014,-500.0,0.00041178,30]
[310974437,1704838265023,-841.98,0.00041178,30]
[310974438,1704838265033,-500.0,0.00041178,30]
[310974439,1704838265043,-500.0,0.00041178,30]
[310974440,1704838265054,-548.78,0.00041178,30]
[310974441,1704838265063,-659.63,0.00041178,30]
[310974442,1704838265073,-500.0,0.00041178,30]
[310974443,1704838265082,-500.0,0.00041178,30]
[310974444,1704838265092,-711.8,0.00041178,30]
[310974445,1704838265102,-500.0,0.00041178,30]
[310974446,1704838265111,-615.37,0.00041178,30]
[310974447,1704838265121,-648.25,0.00041178,30]
[310974448,1704838265130,-502.93507401,0.00041178,30]
[310974449,1704838265140,-500.0,0.00041178,30]
[310974450,1704838265149,-500.0,0.00041178,30]
[310974451,1704838265159,-500.0,0.00041178,30]
[310974452,1704838265169,-550.5,0.00041178,30]
[310974453,1704838265179,-737.28,0.00041178,30]
[310974454,1704838265188,-500.0,0.00041178,30]
[310974455,1704838265198,-738.06,0.00041178,30]
[310974456,1704838265208,-500.0,0.00041178,30]
[310974457,1704838265218,-500.0,0.00041178,30]
[310974458,1704838265227,-341.12001575,0.00041178,30]
[310974459,1704838265237,-500.0,0.00041178,30]
[310974460,1704838265247,-500.0,0.00041178,30]
[310974461,1704838265257,-500.0,0.00041178,30]
[310974462,1704838265267,-500.0,0.00041178,30]
[310974463,1704838265276,-549.09,0.00041178,30]
[310974464,1704838265287,-532.54,0.00041178,30]
[310974465,1704838265299,-500.0,0.00041178,30]
[310974466,1704838265309,-500.0,0.00041178,30]
[310974467,1704838265318,-500.0,0.00041178,30]
[310974468,1704838265328,-500.0,0.00041178,30]
[310974469,1704838265445,-500.0,0.00041178,30]
[310974470,1704838265456,-500.0,0.00041178,30]
[310974471,1704838265466,-769.53,0.00041178,30]
[310974472,1704838265475,-619.92,0.00041178,30]
[310974473,1704838265485,-500.0,0.00041178,30]
[310974474,1704838265494,-500.0,0.00041178,30]
[310974475,1704838265504,-500.0,0.00041178,30]
[310974476,1704838265513,-152.99763318,0.00041178,30]
[310974477,1704838265522,-500.0,0.00041178,30]
[310974478,1704838265532,-965.65,0.00041178,30]
[310974479,1704838265542,-1000.0,0.00041178,2]
[310974480,1704838265554,-500.0,0.00041178,5]
[310974481,1704838265563,-500.0,0.00041178,30]
[310974482,1704838265573,-500.0,0.00041178,30]
[310974483,1704838265583,-500.0,0.00041178,30]
[310974484,1704838265593,-500.0,0.00041178,30]
[310974485,1704838265603,-500.0,0.00041178,30]
[310974486,1704838265612,-500.0,0.00041178,30]
[310974487,1704838265621,-500.0,0.00041178,30]
[310974488,1704838265631,-500.0,0.00041178,30]
[310974489,1704838265640,-500.0,0.00041178,30]
[310974490,1704838265650,-500.0,0.00041178,30]
[310974491,1704838265659,-500.0,0.00041178,30]
[310974492,1704838265668,-820.75,0.00041178,30]
[310974493,1704838265684,-500.0,0.00041178,30]
[310974494,1704838265698,-500.0,0.00041178,30]
[310974495,1704838265708,-500.0,0.00041178,30]
[310974496,1704838265717,-500.0,0.00041178,30]
[310974497,1704838265727,-589.22,0.00041178,30]
[310974498,1704838265736,-500.0,0.00041178,30]
[310974499,1704838265746,-500.0,0.00041178,30]
[310974500,1704838265755,-500.0,0.00041178,30]
[310974501,1704838265765,-500.0,0.00041178,30]
[310974502,1704838265774,-525.0639084,0.00041178,30]
[310974503,1704838265784,-582.79,0.00041178,30]
[310974504,1704838265795,-631.03,0.00041178,30]
[310974505,1704838265804,-545.27,0.00041178,30]
[310974506,1704838265814,-500.0,0.00041178,30]
[310974507,1704838265823,-500.0,0.00041178,30]
[310974508,1704838265832,-500.0,0.00041178,30]
[310974509,1704838265843,-321.64709843,0.00041178,30]
[310974510,1704838265852,-500.0,0.00041178,30]
[310974511,1704838265861,-500.0,0.00041178,30]
[310974512,1704838265871,-500.0,0.00041178,30]
[310974513,1704838265880,-659.73,0.00041178,30]
[310974514,1704838265889,-500.0,0.00041178,30]
[310974515,1704838265899,-500.0,0.00041178,30]
[310974516,1704838265909,-500.0,0.00041178,30]
[310974517,1704838265919,-500.0,0.00041178,30]
[310974518,1704838265928,-556.47,0.00041178,30]
[310974519,1704838265938,-518.23303356,0.00041178,30]
[310974520,1704838265948,-500.0,0.00041178,30]
[310974521,1704838265958,-1383.38,0.00041178,30]
[310974522,1704838265968,-500.0,0.00041178,30]
[310974523,1704838265978,-157.34240281,0.00041178,30]
[310974524,1704838265989,-500.0,0.00041178,30]
[310974525,1704838266000,-246.83986724,0.00041178,30]
[310974526,1704838266010,-500.0,0.00041178,30]
[310974527,1704838266020,-794.95,0.00041178,30]
[310974528,1704838266029,-500.0,0.00041178,30]
[310974529,1704838266038,-583.28,0.00041178,30]
[310974530,1704838266050,-500.0,0.00041178,30]
[310974531,1704838266060,-500.0,0.00041178,30]
[310974532,1704838266069,-500.0,0.00041178,30]
[310974533,1704838266078,-239.57634863,0.00041178,30]
[310974534,1704838266088,-500.0,0.00041178,30]
[310974535,1704838266098,-500.0,0.00041178,30]
[310974536,1704838266107,-617.02887329,0.00041178,30]
[310974537,1704838266117,-500.0,0.00041178,30]
[310974538,1704838266126,-500.0,0.00041178,30]
[310974539,1704838266136,-307.68139574,0.00041178,30]
[310974540,1704838266146,-500.0,0.00041178,15]
[310974541,1704838266155,-500.0,0.00041178,30]
[310974542,1704838266166,-500.0,0.00041178,30]
[310974543,1704838266175,-500.0,0.00041178,30]
[310974544,1704838266185,-1656.81,0.00041178,30]
[310974545,1704838266195,-500.0,0.00041178,30]
[310974546,1704838266205,-500.0,0.00041178,30]
[310974547,1704838266217,-500.0,0.00041178,30]
[310974548,1704838266227,-500.0,0.00041178,30]
[310974549,1704838266239,-500.0,0.00041178,30]
[310974550,1704838266249,-500.0,0.00041178,30]
[310974551,1704838266259,-500.0,0.00041178,30]
[310974552,1704838266269,-500.0,0.00041178,30]
[310974553,1704838266278,-500.0,0.00041178,2]
[310974554,1704838266288,-500.0,0.00041178,30]
[310974555,1704838266299,-500.0,0.00041178,30]
[310974556,1704838266309,-500.0,0.00041178,30]
[310974557,1704838266319,-500.0,0.00041178,30]
[310974558,1704838266328,-500.0,0.00041178,2]
[310974559,1704838266338,-500.0,0.00041178,30]
[310974560,1704838266348,-500.0,0.00041178,30]
[310974561,1704838266357,-855.3,0.00041178,30]
[310974562,1704838266366,-500.0,0.00041178,30]
[310974563,1704838266376,-500.0,0.00041178,30]
[310974564,1704838266385,-500.0,0.00041178,30]
[310974565,1704838266395,-500.0,0.00041178,30]
[310974566,1704838266404,-500.0,0.00041178,30]
[310974567,1704838266413,-500.0,0.00041178,30]
[310974568,1704838266423,-500.0,0.00041178,30]
[310974569,1704838266432,-500.0,0.00041178,30]
[310974570,1704838266442,-500.0,0.00041178,30]
[310974571,1704838266452,-500.0,0.00041178,3]
[310974572,1704838266462,-500.0,0.00041178,30]
[310974573,1704838266472,-500.0,0.00041178,30]
[310974574,1704838266481,-500.0,0.00041178,30]
[310974575,1704838266491,-500.0,0.00041178,30]
[310974576,1704838266500,-500.0,0.00041178,30]
[310974577,1704838266510,-500.0,0.00041178,30]
[310974578,1704838266519,-500.0,0.00041178,30]
[310974579,1704838266529,-500.0,0.00041178,30]
[310974580,1704838266539,-826.09,0.00041178,30]
[310974581,1704838266551,-500.0,0.00041178,30]
[310974582,1704838266560,-500.0,0.00041178,30]
[310974583,1704838266570,-500.0,0.00041178,30]
[310974584,1704838266579,-500.0,0.00041178,30]
[310974585,1704838266589,-500.0,0.00041178,30]
[310974586,1704838266599,-500.0,0.00041178,30]
[310974587,1704838266609,-500.0,0.00041178,30]
[310974588,1704838266618,-699.72,0.00041178,30]
[310974589,1704838266628,-500.0,0.00041178,30]
[310974590,1704838266638,-969.6,0.00041178,30]
[310974591,1704838266648,-500.0,0.00041178,2]
[310974592,1704838266659,-500.0,0.00041178,30]
[310974593,1704838266668,-500.0,0.00041178,30]
[310974594,1704838266677,-500.0,0.00041178,30]
[310974595,1704838266687,-500.0,0.00041178,30]
[310974596,1704838266696,-500.0,0.00041178,30]
[310974597,1704838266706,-500.0,0.00041178,30]
[310974598,1704838266716,-500.0,0.00041178,30]
[310974599,1704838266725,-636.12,0.00041178,30]
[310974600,1704838266735,-884.22,0.00041178,30]
[310974601,1704838266744,-500.0,0.00041178,30]
[310974602,1704838266753,-500.0,0.00041178,30]
[310974603,1704838266762,-500.0,0.00041178,30]
[310974604,1704838266771,-500.0,0.00041178,30]
[310974605,1704838266780,-809.17,0.00041178,30]
[310974606,1704838266790,-500.0,0.00041178,30]
[310974607,1704838266802,-500.0,0.00041178,30]
[310974608,1704838266811,-500.0,0.00041178,30]
[310974609,1704838266820,-578.19287095,0.00041178,30]
[310974610,1704838266830,-500.0,0.00041178,30]
[310974611,1704838266839,-500.0,0.00041178,30]
[310974612,1704838266848,-500.0,0.00041178,30]
[310974613,1704838266858,-500.0,0.00041178,30]
[310974614,1704838266868,-500.0,0.00041178,30]
[310974615,1704838266877,-500.0,0.00041178,30]
[310974616,1704838266886,-500.0,0.00041178,30]
[310974617,1704838266896,-500.0,0.00041178,30]
[310974618,1704838266910,-500.0,0.00041178,30]
[310974619,1704838266920,-500.0,0.00041178,30]
[310974620,1704838266930,-500.0,0.00041178,30]
[310974621,1704838266941,-1095.94,0.00041178,30]
[310974622,1704838266951,-1092.75,0.00041178,30]
[310974623,1704838266961,-500.0,0.00041178,30]
[310974624,1704838266971,-500.0,0.00041178,30]
[310974625,1704838266982,-500.0,0.00041178,30]
[310974626,1704838266991,-500.0,0.00041178,30]
[310974627,1704838267001,-697.87,0.00041178,30]
[310974628,1704838267010,-550.4739169,0.00041178,30]
[310974629,1704838267019,-500.0,0.00041178,30]
[310974630,1704838267029,-500.0,0.00041178,30]
[310974631,1704838267038,-732.79,0.00041178,30]
[310974632,1704838267050,-500.0,0.00041178,30]
[310974633,1704838267060,-500.0,0.00041178,30]
[310974634,1704838267069,-500.0,0.00041178,30]
[310974635,1704838267079,-500.0,0.00041178,30]
[310974636,1704838267088,-500.0,0.00041178,30]
[310974637,1704838267098,-500.0,0.00041178,30]
[310974638,1704838267108,-500.0,0.00041178,30]
[310974639,1704838267117,-1093.88,0.00041178,30]
[310974640,1704838267127,-500.0,0.00041178,30]
[310974641,1704838267137,-911.96,0.00041178,30]
[310974642,1704838267147,-553.69,0.00041178,30]
[310974643,1704838267156,-500.0,0.00041178,30]
[310974644,1704838267166,-500.0,0.00041178,30]
[310974645,1704838267175,-629.6,0.00041178,30]
[310974646,1704838267185,-500.0,0.00041178,30]
[310974647,1704838267194,-500.0,0.00041178,30]
[310974648,1704838267204,-1000.0,0.00041178,30]
[310974649,1704838267214,-500.0,0.00041178,30]
[310974650,1704838267224,-500.0,0.00041178,30]
[310974651,1704838267234,-954.8,0.00041178,30]
[310974652,1704838267243,-500.0,0.00041178,30]
[310974653,1704838267253,-500.0,0.00041178,30]
[310974654,1704838267263,-500.0,0.00041178,30]
[310974655,1704838267272,-731.3,0.00041178,30]
[310974656,1704838267282,-500.0,0.00041178,30]
[310974657,1704838267292,-500.0,0.00041178,30]
[310974658,1704838267304,-500.0,0.00041178,30]
[310974659,1704838267313,-500.0,0.00041178,30]
[310974660,1704838267323,-500.0,0.00041178,30]
[310974661,1704838267332,-965.23,0.00041178,30]
[310974662,1704838267342,-715.75,0.00041178,30]
[310974663,1704838267351,-500.0,0.00041178,30]